bitfinex-derivatives/quotes_BNBF0:USTF0_20260110
["timestamp","ask_amount","ask_price","bid_price","bid_amount"]
[1768023299648,0.19147338,909.44,908.06,0.71218058]
[1768023299944,0.19147338,909.44,908.07,0.71218058]
[1768023300147,0.19147338,909.44,908.08,0.71218058]
[1768023300350,0.19147338,909.44,908.09,0.71218058]
[1768023300551,0.19147338,909.44,908.1,0.71214054]
[1768023300751,0.19147338,909.44,908.11,0.71214054]
[1768023300947,0.19147338,909.44,908.12,0.71214054]
[1768023301152,0.19147338,909.44,908.13,0.71214054]
[1768023301352,0.19147338,909.44,908.14,0.71214054]
[1768023301552,0.19147338,909.44,908.15,0.71214054]
[1768023301752,0.19147338,909.44,908.16,0.71214054]
[1768023302052,0.19147338,909.44,908.17,0.71214054]
[1768023302252,0.19147338,909.44,908.18,0.71214054]
[1768023302448,0.19147338,909.44,908.19,0.71214054]
[1768023302752,0.19147338,909.44,908.2,0.71214054]
[1768023302953,0.19147338,909.44,908.0,1.972]
[1768023303151,0.19147338,909.44,908.01,0.71224162]
[1768023303453,0.19147338,909.44,908.02,0.71224162]
[1768023303653,0.19147338,909.44,908.03,0.71224162]
[1768023303851,0.19147338,909.44,908.04,0.71224162]
[1768023304054,0.19147338,909.44,908.05,0.71224162]
[1768023304352,0.19147338,909.44,908.06,0.71224162]
[1768023304651,0.19147338,909.44,908.07,0.71224162]
[1768023304851,0.19147338,909.44,908.08,0.71224162]
[1768023305054,0.19147338,909.44,908.09,0.71224162]
[1768023305259,0.19147338,909.44,908.1,0.71224162]
[1768023305457,0.19147338,909.44,908.11,0.71224162]
[1768023305656,0.19147338,909.44,908.12,0.71224162]
[1768023305854,0.19147338,909.44,908.13,0.71224162]
[1768023306055,0.19147338,909.44,908.14,0.71224162]
[1768023306252,0.19147338,909.44,908.15,0.71224162]
[1768023306457,0.19147338,909.44,908.16,0.71224162]
[1768023306658,0.19147338,909.44,908.17,0.71224162]
[1768023306959,0.19147338,909.44,908.18,0.71224162]
[1768023307258,0.19147338,909.44,908.19,0.71224162]
[1768023307458,0.19147338,909.44,908.2,0.71224162]
[1768023307759,0.19147338,909.44,908.21,0.71224162]
[1768023307959,0.19147338,909.44,908.22,0.71224162]
[1768023308161,0.19147338,909.44,908.0,1.972]
[1768023308461,0.19147338,909.44,908.01,0.71281255]
[1768023308663,0.19147338,909.44,908.02,0.71281255]
[1768023308858,0.19147338,909.44,908.03,0.71281255]
[1768023309061,0.19147338,909.44,908.04,0.71281255]
[1768023309260,0.19147338,909.44,908.05,0.71281255]
[1768023309460,0.19147338,909.44,908.06,0.71281255]
[1768023309660,0.19147338,909.44,908.07,0.71281255]
[1768023309858,0.19147338,909.44,908.08,0.71281255]
[1768023310056,0.19147338,909.44,908.09,0.71281255]
[1768023310358,0.19147338,909.44,908.1,0.71281255]
[1768023310556,0.19147338,909.44,908.11,0.71281255]
[1768023310758,0.19147338,909.44,908.12,0.71281255]
[1768023310961,0.19147338,909.44,908.0,1.972]
[1768023311162,0.19147338,909.44,908.01,0.71392725]
[1768023311362,0.19147338,909.44,908.02,0.71392725]
[1768023311662,0.19147338,909.44,908.03,0.71392725]
[1768023311862,0.19147338,909.44,908.04,0.71392725]
[1768023312063,0.19147338,909.44,908.05,0.71392725]
[1768023312263,0.19147338,909.44,908.06,0.71392725]
[1768023312463,0.19147338,909.44,908.07,0.71392725]
[1768023312661,0.19147338,909.44,908.08,0.71392725]
[1768023312864,0.19147338,909.44,908.09,0.71392725]
[1768023313064,0.19147338,909.44,908.1,0.71392725]
[1768023313264,0.19147338,909.44,908.0,1.972]
[1768023313265,0.19147338,909.44,908.11,0.71392725]
[1768023313565,0.19147338,909.44,908.0,1.972]
[1768023313765,0.19147338,909.44,908.01,0.71424472]
[1768023313964,0.19147338,909.44,908.02,0.71424472]
[1768023314164,0.19147338,909.44,908.03,0.71424472]
[1768023314365,0.19147338,909.44,908.0,1.972]
[1768023314566,0.19147338,909.44,908.01,0.71396702]
[1768023314767,0.19147338,909.44,908.0,1.972]
[1768023314962,0.19147338,909.44,908.01,0.71400023]
[1768023315167,0.19147338,909.44,908.0,1.972]
[1768023331479,0.19147338,909.44,907.69,0.82132031]
[1768023331680,0.19147338,909.44,907.7,0.71144628]
[1768023331875,0.19147338,909.44,907.71,0.71144628]
[1768023332080,0.19147338,909.44,907.72,0.71144628]
[1768023332282,0.19147338,909.44,907.73,0.71144628]
[1768023332577,0.19147338,909.44,907.74,0.71144628]
[1768023332781,0.19147338,909.44,907.75,0.71144628]
[1768023332983,0.19147338,909.44,907.76,0.71144628]
[1768023333282,0.19147338,909.44,907.77,0.71144628]
[1768023333482,0.19147338,909.44,907.78,0.71144628]
[1768023333681,0.19147338,909.44,907.79,0.71144628]
[1768023333880,0.19147338,909.44,907.8,0.71144628]
[1768023334177,0.19147338,909.44,907.81,0.71144628]
[1768023334378,0.19147338,909.44,907.82,0.71144628]
[1768023334582,0.19147338,909.44,907.83,0.71144628]
[1768023334883,0.19147338,909.44,907.84,0.71144628]
[1768023335083,0.19147338,909.44,907.85,0.71144628]
[1768023335286,0.19147338,909.44,907.86,0.71144628]
[1768023335486,0.19147338,909.44,907.87,0.71144628]
[1768023335688,0.19147338,909.44,907.88,0.71144628]
[1768023335987,0.19147338,909.44,907.89,0.71144628]
[1768023336287,0.19147338,909.44,907.9,0.71144628]
[1768023336587,0.19147338,909.44,907.91,0.71144628]
[1768023336787,0.19147338,909.44,907.92,0.71144628]
[1768023336984,0.19147338,909.44,907.93,0.71144628]
[1768023337183,0.19147338,909.44,907.94,0.71144628]
[1768023337386,0.19147338,909.44,907.95,0.71144628]
[1768023337582,0.19147338,909.44,907.96,0.71144628]
[1768023337785,0.19147338,909.44,907.97,0.71144628]
[1768023338088,0.19147338,909.44,907.98,0.71144628]
[1768023338386,0.19147338,909.44,907.99,0.71144628]
[1768023338582,0.19147338,909.44,907.85,1.708]
[1768023338788,0.19147338,909.44,907.86,0.71171285]
[1768023338988,0.19147338,909.44,907.87,0.71171285]
[1768023339188,0.19147338,909.44,907.88,0.71171285]
[1768023339389,0.19147338,909.44,907.89,0.71171285]
[1768023339685,0.19147338,909.44,907.9,0.71171285]
[1768023339885,0.19147338,909.44,907.91,0.71171285]
[1768023340083,0.19147338,909.44,907.92,0.71171285]
[1768023340384,0.19147338,909.44,907.93,0.71171285]
[1768023340687,0.19147338,909.44,907.94,0.71171285]
[1768023340884,0.19147338,909.44,907.95,0.71171285]
[1768023341188,0.19147338,909.44,907.96,0.71171285]
[1768023341387,0.19147338,909.44,907.97,0.71171285]
[1768023341587,0.19147338,909.44,907.98,0.71171285]
[1768023341787,0.19147338,909.44,907.99,0.71171285]
[1768023341988,0.19147338,909.44,908.0,0.71171285]
[1768023342188,0.19147338,909.44,908.01,0.71171285]
[1768023342385,0.19147338,909.44,908.02,0.71171285]
[1768023342688,0.19147338,909.44,908.03,0.71171285]
[1768023342889,0.19147338,909.44,907.85,1.708]
[1768023343089,0.19147338,909.44,907.86,0.71243293]
[1768023343289,0.19147338,909.44,907.87,0.71243293]
[1768023343488,0.19147338,909.44,907.88,0.71243293]
[1768023343789,0.19147338,909.44,907.89,0.71243293]
[1768023343988,0.19147338,909.44,907.9,0.71243293]
[1768023344189,0.19147338,909.44,907.91,0.71243293]
[1768023344390,0.19147338,909.44,907.92,0.71243293]
[1768023344692,0.19147338,909.44,907.93,0.71243293]
[1768023344891,0.19147338,909.44,907.94,0.71243293]
[1768023345087,0.19147338,909.44,907.95,0.71243293]
[1768023345290,0.19147338,909.44,907.96,0.71243293]
[1768023345587,0.19147338,909.44,907.97,0.71243293]
[1768023345788,0.19147338,909.44,907.98,0.71243293]
[1768023346090,0.19147338,909.44,907.99,0.71243293]
[1768023346290,0.19147338,909.44,908.0,0.71243293]
[1768023346490,0.19147338,909.44,908.01,0.71243293]
[1768023346690,0.19147338,909.44,908.02,0.71243293]
[1768023346889,0.19147338,909.44,908.03,0.71243293]
[1768023347092,0.19147338,909.44,907.85,1.708]
[1768023347287,0.19147338,909.44,907.86,0.71278823]
[1768023347492,0.19147338,909.44,907.87,0.71278823]
[1768023347692,0.19147338,909.44,907.88,0.71278823]
[1768023347891,0.19147338,909.44,907.89,0.71278823]
[1768023348091,0.19147338,909.44,907.9,0.71278823]
[1768023348292,0.19147338,909.44,907.91,0.71278823]
[1768023348494,0.19147338,909.44,907.92,0.71278823]
[1768023348693,0.19147338,909.44,907.93,0.71278823]
[1768023348892,0.19147338,909.44,907.94,0.71278823]
[1768023349188,0.19147338,909.44,907.95,0.71278823]
[1768023349393,0.19147338,909.44,907.96,0.71278823]
[1768023349590,0.19147338,909.44,907.97,0.71278823]
[1768023349792,0.19147338,909.44,907.85,1.708]
[1768023349793,0.19147338,909.44,907.98,0.71278823]
[1768023349993,0.19147338,909.44,907.99,0.71278823]
[1768023350194,0.19147338,909.44,908.0,0.71278823]
[1768023350490,0.19147338,909.44,908.01,0.71278823]
[1768023350794,0.19147338,909.44,908.02,0.71278823]
[1768023351094,0.19147338,909.44,908.03,0.71278823]
[1768023351294,0.19147338,909.44,907.85,1.708]
[1768023351492,0.19147338,909.44,907.86,0.71320351]
[1768023351691,0.19147338,909.44,907.87,0.71320351]
[1768023351993,0.19147338,909.44,907.88,0.71320351]
[1768023352193,0.19147338,909.44,907.89,0.71320351]
[1768023352391,0.19147338,909.44,907.9,0.71320351]
[1768023352692,0.19147338,909.44,907.91,0.71320351]
[1768023352895,0.19147338,909.44,907.92,0.71320351]
[1768023353197,0.19147338,909.44,907.85,1.708]
[1768023353198,0.19147338,909.44,907.93,0.71320351]
[1768023353398,0.19147338,909.44,907.94,0.71320351]
[1768023353594,0.19147338,909.44,907.85,1.708]
[1768023353595,0.19147338,909.44,907.95,0.71320351]
[1768023353898,0.19147338,909.44,907.96,0.71320351]
[1768023354098,0.19147338,909.44,907.97,0.71320351]
[1768023354293,0.19147338,909.44,907.98,0.71320351]
[1768023354499,0.19147338,909.44,907.99,0.71320351]
[1768023354695,0.19147338,909.44,908.0,0.71320351]
[1768023354995,0.19147338,909.44,907.85,1.708]
[1768023355195,0.19147338,909.44,907.86,0.71349252]
[1768023355391,0.19147338,909.44,907.87,0.71349252]
[1768023355597,0.19147338,909.44,907.88,0.71349252]
[1768023355796,0.19147338,909.44,907.89,0.71349252]
[1768023355998,0.19147338,909.44,907.9,0.71349252]
[1768023356196,0.19147338,909.44,907.91,0.71349252]
[1768023356399,0.19147338,909.44,907.92,0.71349252]
[1768023356600,0.19147338,909.44,907.93,0.71349252]
[1768023356796,0.19147338,909.44,907.94,0.71349252]
[1768023356995,0.19147338,909.44,907.95,0.71349252]
[1768023357195,0.19147338,909.44,907.96,0.71349252]
[1768023357398,0.19147338,909.44,907.97,0.71349252]
[1768023357596,0.19147338,909.44,907.98,0.71349252]
[1768023357796,0.19147338,909.44,907.99,0.71349252]
[1768023357996,0.19147338,909.44,908.0,0.71349252]
[1768023358200,0.19147338,909.44,908.01,0.71349252]
[1768023358400,0.19147338,909.44,907.85,1.708]
[1768023358697,0.19147338,909.44,907.86,0.71352658]
[1768023358997,0.19147338,909.44,907.87,0.71352658]
[1768023359197,0.19147338,909.44,907.88,0.71352658]
[1768023359401,0.19147338,909.44,907.89,0.71352658]
[1768023359601,0.19147338,909.44,907.9,0.71352658]
[1768023359897,0.19147338,909.44,907.91,0.71352658]
[1768023360201,0.19147338,909.44,907.92,0.71352658]
[1768023360498,0.19147338,909.44,907.93,0.71352658]
[1768023360698,0.19147338,909.44,907.94,0.71352658]
[1768023360901,0.19147338,909.44,907.95,0.71352658]
[1768023361201,0.19147338,909.44,907.96,0.71352658]
[1768023361402,0.19147338,909.44,907.97,0.71352658]
[1768023361600,0.19147338,909.44,907.98,0.71352658]
[1768023361797,0.19147338,909.44,907.99,0.71352658]
[1768023362002,0.19147338,909.44,908.0,0.71352658]
[1768023362301,0.19147338,909.44,908.01,0.71352658]
[1768023362502,0.19147338,909.44,908.02,0.71352658]
[1768023362701,0.19147338,909.44,908.03,0.71352658]
[1768023363002,0.19147338,909.44,908.04,0.71352658]
[1768023363198,0.19147338,909.44,908.05,0.71352658]
[1768023363401,0.19147338,909.44,908.06,0.71352658]
[1768023363596,0.19147338,909.44,907.77,0.82132031]
[1768023363801,0.19147338,909.44,907.78,0.71380653]
[1768023363997,0.19147338,909.44,907.79,0.71380653]
[1768023364198,0.19147338,909.44,907.8,0.71380653]
[1768023364501,0.19147338,909.44,907.81,0.71380653]
[1768023364699,0.19147338,909.44,907.82,0.71380653]
[1768023364898,0.19147338,909.44,907.83,0.71380653]
[1768023365201,0.19147338,909.44,907.84,0.71380653]
[1768023365498,0.19147338,909.44,907.85,0.71380653]
[1768023365700,0.19147338,909.44,907.86,0.71380653]
[1768023365902,0.19147338,909.44,907.76,0.82132031]
[1768023365903,0.19147338,909.44,907.87,0.71380653]
[1768023366097,0.19147338,909.44,907.88,0.71380653]
[1768023366398,0.19147338,909.44,906.78,2.72673787]
[1768023366399,0.19147338,909.44,907.89,0.71380653]
[1768023366600,0.19147338,909.44,907.9,0.71380653]
[1768023366797,0.19147338,909.44,907.91,0.71380653]
[1768023367003,0.19147338,909.44,907.92,0.71380653]
[1768023367199,0.19147338,909.44,907.93,0.71380653]
[1768023367399,0.19147338,909.44,907.94,0.71380653]
[1768023367702,0.19147338,909.44,907.95,0.71380653]
[1768023367901,0.19147338,909.44,907.96,0.71380653]
[1768023368099,0.19147338,909.44,907.97,0.71380653]
[1768023368301,0.19147338,909.44,907.98,0.71380653]
[1768023368502,0.19147338,909.44,907.99,0.71380653]
[1768023368702,0.19147338,909.44,908.0,0.71380653]
[1768023368902,0.19147338,909.44,908.01,0.71380653]
[1768023369202,0.19147338,909.44,908.02,0.71380653]
[1768023369404,0.19147338,909.44,908.03,0.71380653]
[1768023369604,0.19147338,909.44,908.04,0.71380653]
[1768023369899,0.19147338,909.44,908.05,0.71380653]
[1768023370105,0.19147338,909.44,908.06,0.71380653]
[1768023370404,0.19147338,909.44,908.07,0.71380653]
[1768023370604,0.19147338,909.44,908.08,0.71380653]
[1768023370805,0.19147338,909.44,908.09,0.71380653]
[1768023371100,0.19147338,909.44,908.1,0.71380653]
[1768023371305,0.19147338,909.44,908.11,0.71380653]
[1768023371506,0.19147338,909.44,908.12,0.71380653]
[1768023371802,0.19147338,909.44,908.13,0.71380653]
[1768023372100,0.19147338,909.44,908.14,0.71380653]
[1768023372304,0.19147338,909.44,907.89,1.765]
[1768023372505,0.19147338,909.44,907.9,0.71452185]
[1768023372705,0.19147338,909.44,907.91,0.71452185]
[1768023373002,0.19147338,909.44,907.92,0.71452185]
[1768023373305,0.19147338,909.44,907.93,0.71452185]
[1768023373506,0.19147338,909.44,907.94,0.71452185]
[1768023373806,0.19147338,909.44,907.95,0.71452185]
[1768023374102,0.19147338,909.44,907.96,0.71452185]
[1768023374305,0.19147338,909.44,907.97,0.71452185]
[1768023374505,0.19147338,909.44,907.98,0.71452185]
[1768023374701,0.19147338,909.44,907.99,0.71452185]
[1768023375002,0.19147338,909.44,908.0,0.71452185]
[1768023375202,0.19147338,909.44,908.01,0.71452185]
[1768023375500,0.19147338,909.44,908.02,0.71452185]
[1768023375705,0.19147338,909.44,908.03,0.71452185]
[1768023375903,0.19147338,909.44,908.04,0.71452185]
[1768023376102,0.19147338,909.44,908.05,0.71452185]
[1768023376405,0.19147338,909.44,908.06,0.71452185]
[1768023376705,0.19147338,909.44,908.07,0.71452185]
[1768023376905,0.19147338,909.44,908.08,0.71452185]
[1768023377106,0.19147338,909.44,908.09,0.71452185]
[1768023377405,0.19147338,909.44,908.1,0.71452185]
[1768023377606,0.19147338,909.44,908.11,0.71452185]
[1768023377906,0.19147338,909.44,908.12,0.71452185]
[1768023378107,0.19147338,909.44,908.13,0.71452185]
[1768023378306,0.19147338,909.44,908.14,0.71452185]
[1768023378603,0.19147338,909.44,908.15,0.71452185]
[1768023378807,0.19147338,909.44,908.16,0.71452185]
[1768023379007,0.19147338,909.44,908.17,0.71452185]
[1768023379207,0.19147338,909.44,908.18,0.71577804]
[1768023379403,0.19147338,909.44,908.19,0.71577804]
[1768023379608,0.19147338,909.44,908.2,0.71577804]
[1768023379809,0.19147338,909.44,908.21,0.71577804]
[1768023380108,0.19147338,909.44,908.22,0.71577804]
[1768023380305,0.19147338,909.44,908.23,0.71577804]
[1768023380508,0.19147338,909.44,908.24,0.71577804]
[1768023380709,0.19147338,909.44,908.25,0.71577804]
[1768023380906,0.19147338,909.44,908.26,0.71577804]
[1768023381105,0.19147338,909.44,908.27,0.71577804]
[1768023381309,0.19147338,909.44,907.98,0.82132031]
[1768023381510,0.19147338,909.44,907.99,0.7148414]
[1768023381809,0.19147338,909.44,908.0,0.7148414]
[1768023382009,0.19147338,909.44,908.01,0.7148414]
[1768023382208,0.19147338,909.44,908.02,0.7148414]
[1768023382410,0.19147338,909.44,908.03,0.7148414]
[1768023382710,0.19147338,909.44,908.04,0.7148414]
[1768023382906,0.19147338,909.44,908.05,0.7148414]
[1768023383209,0.19147338,909.44,908.06,0.7148414]
[1768023383409,0.19147338,909.44,908.07,0.7148414]
[1768023383609,0.19147338,909.44,908.08,0.7148414]
[1768023383913,0.19147338,909.44,908.09,0.7148414]
[1768023384111,0.19147338,909.44,908.1,0.7148414]
[1768023384408,0.19147338,909.44,908.11,0.7148414]
[1768023384608,0.19147338,909.44,908.12,0.7148414]
[1768023384805,0.19147338,909.44,908.13,0.7148414]
[1768023385011,0.19147338,909.44,908.14,0.7148414]
[1768023385211,0.19147338,909.44,908.15,0.7148414]
[1768023385410,0.19147338,909.44,908.16,0.7148414]
[1768023385608,0.19147338,909.44,908.17,0.7148414]
[1768023385907,0.19147338,909.44,908.18,0.7148414]
[1768023386106,0.19147338,909.44,908.19,0.7148414]
[1768023386309,0.19147338,909.44,908.2,0.7148414]
[1768023386510,0.19147338,909.44,908.21,0.7148414]
[1768023386707,0.19147338,909.44,908.22,0.7148414]
[1768023386911,0.19147338,909.44,908.23,0.7148414]
[1768023387112,0.19147338,909.44,907.94,0.82132031]
[1768023387412,0.19147338,909.44,907.95,0.71434155]
[1768023387709,0.19147338,909.44,907.96,0.71434155]
[1768023387911,0.19147338,909.44,907.97,0.71434155]
[1768023388109,0.19147338,909.44,907.98,0.71434155]
[1768023388413,0.19147338,909.44,907.99,0.71434155]
[1768023388708,0.19147338,909.44,908.0,0.71434155]
[1768023388912,0.19147338,909.44,908.01,0.71434155]
[1768023389112,0.19147338,909.44,908.02,0.71434155]
[1768023389408,0.19147338,909.44,908.03,0.71434155]
[1768023389711,0.19147338,909.44,908.04,0.71434155]
[1768023389910,0.19147338,909.44,908.05,0.71434155]
[1768023390108,0.19147338,909.44,908.06,0.71434155]
[1768023390308,0.19147338,909.44,908.07,0.71434155]
[1768023390511,0.19147338,909.44,908.08,0.71434155]
[1768023390711,0.19147338,909.44,908.09,0.71434155]
[1768023390906,0.19147338,909.44,908.1,0.71434155]
[1768023391109,0.19147338,909.44,908.11,0.71434155]
[1768023391313,0.19147338,909.44,908.12,0.71434155]
[1768023391514,0.19147338,909.44,908.13,0.71434155]
[1768023391813,0.19147338,909.44,908.14,0.71434155]
[1768023392010,0.19147338,909.44,908.15,0.71434155]
[1768023392209,0.19147338,909.44,907.99,0.82132031]
[1768023392210,0.19147338,909.44,908.16,0.71434155]
[1768023392509,0.19147338,909.44,908.17,0.71434155]
[1768023392713,0.19147338,909.44,908.18,0.71434155]
[1768023393014,0.19147338,909.44,908.19,0.71434155]
[1768023393213,0.19147338,909.44,908.2,0.71434155]
[1768023393514,0.19147338,909.44,908.21,0.71434155]
[1768023393809,0.19147338,909.44,908.22,0.71434155]
[1768023394010,0.19147338,909.44,908.23,0.71434155]
[1768023394214,0.19147338,909.44,908.24,0.71434155]
[1768023394414,0.19147338,909.44,908.25,0.71434155]
[1768023394710,0.19147338,909.44,908.26,0.71434155]
[1768023394914,0.19147338,909.44,907.97,0.82132031]
[1768023395214,0.19147338,909.44,907.98,0.71329937]
[1768023395514,0.19147338,909.44,907.99,0.71329937]
[1768023395811,0.19147338,909.44,908.0,0.71329937]
[1768023396014,0.19147338,909.44,908.01,0.71329937]
[1768023396215,0.19147338,909.44,908.02,0.71329937]
[1768023396519,0.19147338,909.44,908.03,0.71329937]
[1768023396714,0.19147338,909.44,908.04,0.71329937]
[1768023396914,0.19147338,909.44,908.05,0.71329937]
[1768023397115,0.19147338,909.44,908.06,0.71329937]
[1768023397418,0.19147338,909.44,908.07,0.71329937]
[1768023397618,0.19147338,909.44,908.08,0.71329937]
[1768023397818,0.19147338,909.44,908.09,0.71329937]
[1768023398015,0.19147338,909.44,908.1,0.71329937]
[1768023398214,0.19147338,909.44,908.11,0.71329937]
[1768023398414,0.19147338,909.44,908.12,0.71329937]
[1768023398618,0.19147338,909.44,908.13,0.71329937]
[1768023398914,0.19147338,909.44,908.14,0.71329937]
[1768023399116,0.19147338,909.44,908.15,0.71329937]
[1768023399414,0.19147338,909.44,908.16,0.71329937]
[1768023399618,0.19147338,909.44,908.17,0.71329937]
[1768023399818,0.19147338,909.44,908.18,0.71329937]
[1768023400015,0.19147338,909.44,908.19,0.71329937]
[1768023400319,0.19147338,909.44,908.2,0.71329937]
[1768023400519,0.19147338,909.44,908.21,0.71329937]
[1768023400719,0.19147338,909.44,908.22,0.71329937]
[1768023401015,0.19147338,909.44,907.95,0.82132031]
[1768023401016,0.19147338,909.44,908.23,0.71329937]
[1768023401219,0.19147338,909.44,908.24,0.71329937]
[1768023401420,0.19147338,909.44,908.25,0.71329937]
[1768023401620,0.19147338,909.44,908.26,0.71329937]
[1768023401921,0.19147338,909.44,908.27,0.71329937]
[1768023402118,0.19147338,909.44,908.28,0.71329937]
[1768023402318,0.19147338,909.44,908.29,0.71329937]
[1768023402618,0.19147338,909.44,908.0,0.82132031]
[1768023402821,0.19147338,909.44,908.01,0.71288609]
[1768023403021,0.19147338,909.44,908.02,0.71288609]
[1768023403318,0.19147338,909.44,908.03,0.71288609]
[1768023403621,0.19147338,909.44,908.04,0.71288609]
[1768023403818,0.19147338,909.44,908.05,0.71288609]
[1768023404017,0.19147338,909.44,908.06,0.71288609]
[1768023404217,0.19147338,909.44,908.07,0.71288609]
[1768023404422,0.19147338,909.44,908.08,0.71288609]
[1768023404618,0.19147338,909.44,908.09,0.71288609]
[1768023404823,0.19147338,909.44,908.1,0.71288609]
[1768023405122,0.19147338,909.44,908.11,0.71288609]
[1768023405323,0.19147338,909.44,908.12,0.71288609]
[1768023405519,0.19147338,909.44,908.13,0.71288609]
[1768023405723,0.19147338,909.44,908.14,0.71288609]
[1768023405922,0.19147338,909.44,908.15,0.71288609]
[1768023406119,0.19147338,909.44,908.16,0.71288609]
[1768023406323,0.19147338,909.44,908.17,0.71288609]
[1768023406621,0.19147338,909.44,908.18,0.71288609]
[1768023406821,0.19147338,909.44,908.19,0.71288609]
[1768023407020,0.19147338,909.44,908.2,0.71288609]
[1768023407323,0.19147338,909.44,908.21,0.71288609]
[1768023407523,0.19147338,909.44,908.22,0.71288609]
[1768023407819,0.19147338,909.44,908.23,0.71288609]
[1768023408017,0.19147338,909.44,908.24,0.71288609]
[1768023408223,0.19147338,909.44,908.25,0.71288609]
[1768023408420,0.19147338,909.44,908.26,0.71288609]
[1768023408620,0.19147338,909.44,908.27,0.71288609]
[1768023408824,0.19147338,909.44,908.28,0.71288609]
[1768023409121,0.19147338,909.44,908.29,0.71288609]
[1768023409323,0.19147338,909.44,908.3,0.713163]
[1768023409524,0.19147338,909.44,908.01,0.82132031]
[1768023409722,0.19147338,909.44,908.02,0.71318293]
[1768023409922,0.19147338,909.44,908.03,0.71318293]
[1768023410121,0.19147338,909.44,908.04,0.71318293]
[1768023410323,0.19147338,909.44,908.09,0.82132031]
[1768023410526,0.19147338,909.44,908.1,0.71318293]
[1768023410727,0.19147338,909.44,908.11,0.71318293]
[1768023410924,0.19147338,909.44,908.12,0.71318293]
[1768023411126,0.19147338,909.44,908.21,0.82132031]
[1768023411422,0.19147338,909.44,908.22,0.71318293]
[1768023411625,0.19147338,909.44,908.21,0.82132031]
[1768023411626,0.19147338,909.44,908.23,0.71318293]
[1768023411827,0.19147338,909.44,908.24,0.71318293]
[1768023412026,0.19147338,909.44,908.25,0.71318293]
[1768023412221,0.19147338,909.44,908.26,0.71318293]
[1768023412422,0.19147338,909.44,908.27,0.71318293]
[1768023412623,0.19147338,909.44,908.28,0.71318293]
[1768023412824,0.19147338,909.44,908.29,0.71318293]
[1768023413128,0.19147338,909.44,908.3,0.71318293]
[1768023413328,0.19147338,909.44,908.31,0.71318293]
[1768023413528,0.19147338,909.44,908.32,0.71318293]
[1768023413726,0.19147338,909.44,908.33,0.71318293]
[1768023413926,0.19147338,909.44,908.34,0.71318293]
[1768023414127,0.19147338,909.44,908.35,0.71318293]
[1768023414325,0.19147338,909.44,908.36,0.71318293]
[1768023414530,0.19147338,909.44,908.37,0.71318293]
[1768023414726,0.19147338,909.44,908.38,0.71318293]
[1768023414931,0.19147338,909.44,908.39,0.71318293]
[1768023415129,0.19147338,909.44,908.4,0.71318293]
[1768023415330,0.19147338,909.44,908.41,0.71318293]
[1768023415530,0.19147338,909.44,908.42,0.71318293]
[1768023415730,0.19147338,909.44,908.43,0.71318293]
[1768023415930,0.19147338,909.44,908.44,0.71318293]
[1768023416132,0.19147338,909.44,908.45,0.71318293]
[1768023416332,0.19147338,909.44,908.46,0.71318293]
[1768023416529,0.19147338,909.44,908.47,0.71318293]
[1768023416830,0.19147338,909.44,908.48,0.71318293]
[1768023417028,0.19147338,909.44,908.49,0.71318293]
[1768023417234,0.19147338,909.44,908.5,0.71318293]
[1768023417433,0.19147338,909.44,908.51,0.71318293]
[1768023417633,0.19147338,909.44,908.22,0.82132031]
[1768023417833,0.19147338,909.44,908.23,0.71201469]
[1768023418031,0.19147338,909.44,908.24,0.71201469]
[1768023418331,0.19147338,909.44,908.25,0.71201469]
[1768023418532,0.19147338,909.44,908.26,0.71201469]
[1768023418731,0.19147338,909.44,908.27,0.71201469]
[1768023418931,0.19147338,909.44,908.28,0.71201469]
[1768023419134,0.19147338,909.44,908.29,0.71201469]
[1768023419435,0.19147338,909.44,908.41,0.82132031]
[1768023419631,0.19147338,909.44,908.42,0.71201469]
[1768023419935,0.19147338,909.44,908.43,0.71201469]
[1768023420133,0.19147338,909.44,908.44,0.71201469]
[1768023420335,0.19147338,909.44,908.45,0.71201469]
[1768023420535,0.19147338,909.44,908.41,0.82132031]
[1768023420536,0.19147338,909.44,908.46,0.71201469]
[1768023420831,0.19147338,909.44,908.47,0.71201469]
[1768023421035,0.19147338,909.44,908.48,0.71201469]
[1768023421234,0.19147338,909.44,908.49,0.71201469]
[1768023421435,2.74803267,910.7,908.6,0.82132031]
[1768023421630,0.19135388,909.56,908.62,0.82132031]
[1768023421935,2.74803267,910.72,908.63,0.71201469]
[1768023422138,0.19132916,909.62,908.64,0.71201469]
[1768023422336,0.19132916,909.62,908.65,0.71201469]
[1768023422532,2.74803267,910.76,908.66,0.71201469]
[1768023422738,0.19132653,909.62,908.67,0.71201469]
[1768023422933,0.19132653,909.62,908.68,0.71201469]
[1768023423137,0.19132653,909.62,908.6,0.82132031]
[1768023423138,2.74803267,910.76,908.69,0.71201469]
[1768023423337,0.19132337,909.62,908.7,0.71201469]
[1768023423539,2.74803267,910.78,908.71,0.71201469]
[1768023423733,2.74803267,910.78,908.72,0.71201469]
[1768023423936,2.74803267,910.78,908.58,0.82132031]
[1768023423937,0.1913218,909.62,908.73,0.71201469]
[1768023424133,2.74803267,910.78,908.74,0.71201469]
[1768023424337,0.19131917,909.62,908.75,0.71201469]
[1768023424536,0.19131917,909.62,908.76,0.71201469]
[1768023424737,2.74803267,910.82,908.77,0.71201469]